bitfinex/quotes_ETHUSD_20250414
["timestamp","ask_amount","ask_price","bid_price","bid_amount"]
[1744619607409,4.8892,1636.3,1636.0,0.8208]
[1744619607616,0.82,1636.2,1635.9,4.89026]
[1744619607953,4.8892,1636.3,1635.9,4.89026]
[1744619607954,5.7092,1636.3,1635.9,4.95122043]
[1744619608105,11.18579,1636.4,1635.9,0.06112043]
[1744619608305,6.297,1636.4,1636.1,4.88963]
[1744619608556,0.05,1636.4,1636.1,4.88963]
[1744619609007,0.05,1636.4,1636.1,5.5934853]
[1744619610015,0.05,1636.4,1636.2,0.7737]
[1744619610347,0.05,1636.4,1636.1,0.7038553]
[1744619610559,4.88915,1636.3,1636.0,0.7737]
[1744619611022,0.05,1636.4,1636.3,5.69677]
[1744619611219,0.05,1636.4,1636.3,0.8077]
[1744619611436,0.05,1636.4,1636.2,4.88925]
[1744619611646,0.05,1636.4,1636.3,0.488925]
[1744619612015,0.05,1636.4,1636.3,5.377995]
[1744619612953,0.05,1636.4,1636.3,6.207095]
[1744619613874,0.05,1636.4,1636.3,6.26819906]
[1744619614036,0.05,1636.4,1636.3,6.207095]
[1744619614239,0.05,1636.4,1636.3,6.757095]
[1744619614433,0.05,1636.4,1636.3,9.757095]
[1744619614763,0.05,1636.4,1636.3,9.8181887]
[1744619614924,0.05,1636.4,1636.3,10.28537709]
[1744619616031,1e-05,1636.4,1636.3,10.28537709]
[1744619616259,0.4058257,1637.0,1636.9,5.70888]
[1744619616417,0.4058257,1637.0,1636.9,9.49930608]
[1744619617519,0.4058257,1637.0,1636.9,6.279768]
[1744619618466,0.4058257,1637.0,1636.9,6.34084885]
[1744619618962,0.4058257,1637.0,1636.9,6.279768]
[1744619619465,0.4058257,1637.0,1636.9,6.34085065]
[1744619620645,0.4058257,1637.0,1636.9,6.279768]
[1744619621654,0.4058257,1637.0,1636.9,0.570888]
[1744619621955,0.4058257,1637.0,1636.9,0.63197207]
[1744619622257,0.4058257,1637.0,1636.9,5.458168]
[1744619622425,0.4058257,1637.0,1636.9,0.570888]
[1744619622624,0.4058257,1637.0,1636.7,5.71357]
[1744619622820,0.4058257,1637.0,1636.9,4.88728]
[1744619623149,0.4058257,1637.0,1636.9,5.68738]
[1744619623533,0.4058257,1637.0,1636.9,5.74846202]
[1744619623735,0.4058257,1637.0,1636.9,5.74846208]
[1744619623934,0.4058257,1637.0,1636.9,6.81204529]
[1744619624523,0.4058257,1637.0,1636.9,6.75096321]
[1744619624938,0.4058257,1637.0,1636.9,6.81204154]
[1744619625139,0.4058257,1637.0,1636.9,13.58157962]
[1744619625366,0.4058257,1637.0,1636.9,19.76050129]
[1744619627661,0.4058257,1637.0,1636.9,12.97050129]
[1744619628797,0.4058257,1637.0,1636.9,5.95086321]
[1744619629164,0.4058257,1637.0,1636.9,9.06133109]
[1744619629477,0.4058257,1637.0,1636.9,9.85453109]
[1744619630858,0.4058257,1637.0,1636.9,9.06133109]
[1744619631267,0.4058257,1637.0,1636.8,4.88737]
[1744619631268,1.2276257,1637.0,1636.8,4.88737]
[1744619631474,0.4058257,1637.0,1636.9,4.94837019]
[1744619632258,0.4058257,1637.0,1636.9,7.94837019]
[1744619632665,0.4058257,1637.0,1636.9,8.49837019]
[1744619633396,0.4058257,1637.0,1636.9,9.25168]
[1744619633565,0.4058257,1637.0,1636.9,11.91177858]
[1744619634905,0.4058257,1637.0,1636.9,11.42285446]
[1744619635704,0.4058257,1637.0,1636.9,11.36177858]
[1744619635866,0.4058257,1637.0,1636.9,11.42285681]
[1744619636197,0.4058257,1637.0,1636.9,11.36177858]
[1744619636378,0.4058257,1637.0,1636.9,11.4228557]
[1744619637203,0.4058257,1637.0,1636.9,11.9728557]
[1744619637695,0.4058257,1637.0,1636.9,11.91177858]
[1744619637888,0.4058257,1637.0,1636.9,11.97285083]
[1744619638196,0.4058257,1637.0,1636.9,11.91177858]
[1744619639478,0.4058257,1637.0,1636.9,11.97285304]
[1744619640079,0.4058257,1637.0,1636.9,11.91177858]
[1744619640485,0.4058257,1637.0,1636.9,11.9728476]
[1744619640803,0.4058257,1637.0,1636.9,11.91177858]
[1744619642391,0.4058257,1637.0,1636.9,18.15177858]
[1744619642886,0.4058257,1637.0,1636.9,17.60177858]
[1744619643487,0.4058257,1637.0,1636.9,18.15177858]
[1744619643883,0.4058257,1637.0,1636.9,16.78737858]
[1744619645489,0.4058257,1637.0,1636.9,18.14797858]
[1744619646712,0.4058257,1637.0,1636.9,24.30797858]
[1744619646910,0.05,1637.4,1636.9,24.30797858]
[1744619646911,0.05,1637.4,1637.3,12.32255788]
[1744619647080,0.05,1637.4,1637.3,20.28343967]
[1744619647280,0.05,1637.4,1637.3,23.39390755]
[1744619647491,0.89513851,1638.2,1638.0,4.88379]
[1744619647690,0.13283851,1638.2,1638.1,8.05521105]
[1744619647891,0.13283851,1638.2,1638.1,4.8837]
[1744619648096,0.13283851,1638.2,1638.1,0.976749]
[1744619648296,0.13283851,1638.2,1638.1,5.860449]
[1744619648697,0.13283851,1638.2,1638.1,0.976749]
[1744619648899,0.13283851,1638.2,1638.1,5.860449]
[1744619649122,0.89233851,1638.2,1638.1,0.976749]
[1744619649524,0.89233851,1638.2,1637.9,4.88428]
[1744619649684,0.89233851,1638.2,1638.0,4.88381]
[1744619650389,0.89233851,1638.2,1637.9,9.76845]
[1744619650590,0.89233851,1638.2,1638.0,4.88395]
[1744619650812,0.89233851,1638.2,1637.9,9.76828]
[1744619651017,0.13283851,1638.2,1638.0,4.94482265]
[1744619651317,0.7561,1638.1,1638.0,4.884]
[1744619651633,0.7561,1638.1,1637.9,6.54600063]
[1744619652017,0.7561,1638.1,1637.9,11.43012063]
[1744619652316,0.7561,1638.1,1638.0,4.884]
[1744619652520,0.7561,1638.1,1637.9,11.43014151]
[1744619652818,0.7561,1638.1,1637.9,6.484948]
[1744619653016,0.7561,1638.1,1637.9,6.54599151]
[1744619653320,0.7561,1638.1,1637.9,6.484948]
[1744619653615,5.63986,1638.1,1637.8,6.24]
[1744619653781,10.52376,1638.1,1637.7,4.88477]
[1744619653981,10.52376,1638.1,1637.5,4.01522036]
[1744619653982,0.7561,1638.1,1637.5,4.01522036]
[1744619654491,0.13283851,1638.2,1638.0,4.94504307]
[1744619655018,0.13283851,1638.2,1638.0,9.82888307]
[1744619655244,0.13283851,1638.2,1638.1,4.8837]
[1744619655421,0.13283851,1638.2,1638.1,12.46532036]
[1744619655620,0.12976042,1638.2,1638.1,12.46532036]
[1744619656004,0.11358374,1638.2,1638.1,12.46532036]
[1744619657332,0.11358374,1638.2,1638.1,18.70232036]
[1744619657515,0.11358374,1638.2,1638.1,21.77522523]
[1744619657716,0.11358374,1638.2,1638.1,15.53822523]
[1744619658238,0.11358374,1638.2,1638.1,14.98822523]
[1744619658440,0.11358374,1638.2,1638.1,4.8837]
[1744619659210,0.11358374,1638.2,1638.1,4.94473568]
[1744619659618,0.11358374,1638.2,1638.1,4.8837]
[1744619660041,0.11358374,1638.2,1638.1,4.9447357]
[1744619660236,0.11358374,1638.2,1638.1,5.92759327]
[1744619660540,0.11358374,1638.2,1638.1,5.86655757]
[1744619661295,0.11358374,1638.2,1638.1,12.68931212]
[1744619661499,0.11358374,1638.2,1638.1,12.62827793]
[1744619661956,0.11358374,1638.2,1638.1,8.86655757]
[1744619662401,0.11358374,1638.2,1638.1,9.41655757]
[1744619662802,0.11358374,1638.2,1638.1,8.92758665]
[1744619663034,0.11358374,1638.2,1638.1,8.92758857]
[1744619664131,0.11358374,1638.2,1638.1,0.98285757]
[1744619664336,0.11358374,1638.2,1638.1,0.06103539]
[1744619664967,0.11358374,1638.2,1638.1,0.06103932]
[1744619665376,0.11358374,1638.2,1637.9,4.88427]
[1744619665672,0.11358374,1638.2,1637.9,4.88413]
[1744619665873,0.11358374,1638.2,1638.1,4.8837]
[1744619666331,0.11358374,1638.2,1638.1,5.86655294]
[1744619666531,0.11358374,1638.2,1638.1,0.98285294]
[1744619666731,0.11358374,1638.2,1637.9,9.76835]
[1744619666973,0.11358374,1638.2,1638.0,4.88399]
[1744619667673,0.11358374,1638.2,1638.0,4.88384]
[1744619667976,0.11358374,1638.2,1638.0,4.9448793]
[1744619668172,0.11358374,1638.2,1637.9,4.88426]
[1744619668336,0.11358374,1638.2,1637.9,4.94530409]
[1744619668672,0.11358374,1638.2,1637.9,5.9282325]
[1744619668845,0.11358374,1638.2,1637.9,5.9281725]
[1744619669051,0.11358374,1638.2,1638.1,4.8837]
[1744619670131,0.11358374,1638.2,1638.1,4.94473558]
[1744619670334,0.11358374,1638.2,1638.0,9.76775]
[1744619670547,0.11358374,1638.2,1638.0,5.95894384]
[1744619670848,0.795,1638.1,1637.9,5.9281948]
[1744619671048,0.90858374,1638.2,1638.0,4.88388]
[1744619671252,0.90858374,1638.2,1638.0,9.76776]
[1744619671762,0.90858374,1638.2,1637.9,5.86725841]
[1744619671982,0.90858374,1638.2,1637.9,4.8842]
[1744619672155,0.90858374,1638.2,1637.9,9.82944153]
[1744619672355,0.90858374,1638.2,1638.0,4.88397]
[1744619672555,0.90858374,1638.2,1638.1,4.8837]
[1744619672974,0.90858374,1638.2,1637.9,4.88426]
[1744619673283,0.90858374,1638.2,1638.0,0.488426]
[1744619673488,0.90858374,1638.2,1638.0,4.88388]
[1744619673652,0.90858374,1638.2,1638.0,4.88385]
[1744619673983,0.90858374,1638.2,1637.7,6.10675833]
[1744619674286,0.90858374,1638.2,1638.0,9.7677]
[1744619674483,0.90858374,1638.2,1638.0,4.8838]
[1744619674784,0.90858374,1638.2,1637.9,9.7685]
[1744619674983,0.90858374,1638.2,1637.7,4.88486]
[1744619675197,4.88482,1637.8,1637.4,4.88555]
[1744619675397,0.7639,1637.7,1637.3,1.72088179]
[1744619675696,0.7639,1637.7,1637.5,9.83164923]
[1744619675850,0.7639,1637.7,1637.5,4.94630923]
[1744619676050,0.7639,1637.7,1637.3,4.886]
[1744619676283,0.7639,1637.7,1637.2,7.38364478]
[1744619676284,0.8289,1637.5,1637.2,7.38364478]
[1744619676547,5.71443,1637.5,1637.2,2.49740478]
[1744619676748,0.8289,1637.5,1637.2,7.38376478]
[1744619676954,4.88581,1637.4,1637.2,2.49740478]
[1744619677306,5.71499,1637.3,1637.2,2.49740478]
[1744619677450,5.66149,1637.3,1637.2,2.49740478]
[1744619678002,0.7754,1636.8,1636.5,4.8884]
[1744619678199,0.7754,1636.8,1636.6,4.88817]
[1744619678485,5.663,1636.8,1636.4,4.88876]
[1744619678687,0.7754,1636.8,1636.5,0.488876]
[1744619678862,0.7754,1636.8,1636.6,4.888]
[1744619679072,0.7754,1636.8,1636.5,4.88847]
[1744619679275,0.7754,1636.8,1636.5,4.94944631]
[1744619679487,6.34,1637.0,1636.7,4.88773]
[1744619679689,7.1615,1637.0,1636.6,4.88811]
[1744619680004,4.88746,1636.9,1636.6,0.977659]
[1744619680188,12.04848,1637.0,1636.6,5.865819]
[1744619681089,12.04848,1637.0,1636.3,0.8134]
[1744619681090,0.7866,1636.7,1636.3,4.88907]
[1744619681281,0.7866,1636.7,1636.3,9.77796]
[1744619681495,0.7866,1636.7,1636.4,0.0611023]
[1744619681665,5.6745,1636.7,1636.2,4.88936]
[1744619681860,4.8883,1636.6,1636.2,4.88936]
[1744619682065,5.67756,1636.5,1636.0,4.88996]
[1744619682260,5.67756,1636.5,1635.9,5.66836]
[1744619682261,0.7889,1636.5,1635.9,5.66836]
[1744619682495,0.7889,1636.5,1636.3,4.88902]
[1744619682667,5.67749,1636.5,1636.1,4.88967]
[1744619682867,5.67749,1636.5,1636.1,9.7792]
[1744619683067,0.7889,1636.5,1636.2,4.88937]
[1744619683799,4.88878,1636.4,1636.1,0.97792]
[1744619684293,5.71528,1636.2,1635.8,9.78064]
[1744619684480,0.8259,1636.2,1635.9,4.95138023]
[1744619684685,0.8259,1636.2,1636.0,4.88993]
[1744619685369,5.71528,1636.2,1635.8,4.89054]
[1744619686479,5.71528,1636.2,1635.8,5.868681]
[1744619686662,4.89054,1635.9,1635.2,0.7724]
[1744619686863,0.8047,1636.0,1635.6,4.89109]
[1744619687067,5.6947,1636.0,1635.6,4.89109]
[1744619687300,5.6947,1636.0,1635.6,9.84317333]
[1744619687796,4.89044,1635.9,1635.6,0.98431733]
[1744619687971,0.7988,1635.7,1635.4,4.89174]
[1744619688770,0.7988,1635.7,1635.3,4.89204]
[1744619688968,5.6898,1635.7,1635.3,4.89204]
[1744619689207,5.6898,1635.7,1635.3,4.89192]
[1744619689679,10.58092,1635.7,1635.3,4.89192]
[1744619690081,5.6898,1635.7,1635.3,4.89192]
[1744619690296,5.6898,1635.7,1635.3,10.82337147]
[1744619690470,0.7988,1635.7,1635.5,4.89135]
[1744619690678,0.7988,1635.7,1635.4,4.89163]
[1744619690888,5.68986,1635.7,1635.3,5.870488]
[1744619691091,0.7988,1635.7,1635.4,4.89176]
[1744619692282,0.7988,1635.7,1635.5,4.89142]
[1744619693592,0.7988,1635.7,1635.4,4.89176]
[1744619695003,0.7988,1635.7,1635.4,4.89164]
[1744619695717,0.7988,1635.7,1635.5,4.89145]
[1744619695872,0.7988,1635.7,1635.5,5.869629]
[1744619696224,0.7988,1635.7,1635.5,4.89132]
[1744619696524,0.7988,1635.7,1635.4,4.89176]
[1744619696752,5.68979,1635.7,1635.4,4.89171]
[1744619696923,0.7988,1635.7,1635.5,4.89128]
[1744619697227,0.7988,1635.7,1635.5,9.78262]
[1744619697791,0.7988,1635.7,1635.5,4.89128]
[1744619698424,4.89129,1635.6,1635.2,9.78451]
[1744619698581,4.89129,1635.6,1635.3,4.89201]
[1744619699819,4.89129,1635.6,1635.2,4.89225]
[1744619701204,1.367737,1635.7,1635.2,0.06114512]
[1744619701407,6.258667,1635.7,1635.4,4.89168]
[1744619702315,0.8196,1635.4,1635.1,0.05]
[1744619702520,0.8196,1635.2,1635.1,0.05]
[1744619702899,0.7611,1635.4,1635.1,0.05]
[1744619703106,0.7611,1635.4,1635.3,4.89202]
[1744619703302,7.8903,1635.9,1635.5,4.89143]
[1744619703507,6.33,1635.7,1635.5,4.89143]
[1744619703702,6.33,1635.7,1635.6,4.89117]
[1744619705063,0.7611,1635.8,1635.6,4.89117]
[1744619705214,0.7611,1635.8,1635.5,4.89134]
[1744619705940,0.7611,1635.8,1635.5,9.78263]
[1744619706146,0.7611,1635.8,1635.5,10.760893]
[1744619706354,0.7611,1635.8,1635.7,4.89087]
[1744619706574,6.33324274,1636.0,1635.9,4.89027]
[1744619706575,0.00324274,1636.0,1635.9,4.89027]
[1744619707056,0.00324274,1636.0,1635.8,5.67525]
[1744619707353,0.00324274,1636.0,1635.8,4.89037]
[1744619707513,0.00324274,1636.0,1635.8,4.89039]
[1744619707918,0.00324274,1636.0,1635.9,0.06112796]
[1744619708217,0.00324274,1636.0,1635.9,4.89027]
[1744619708738,0.00324274,1636.0,1635.9,5.44027]
[1744619708954,0.00324274,1636.0,1635.9,6.61604015]
[1744619709462,0.00324274,1636.0,1635.9,6.554926]
[1744619710671,0.00324274,1636.0,1635.9,6.61603756]
[1744619711176,0.00324274,1636.0,1635.9,14.06629823]
[1744619711323,0.8165,1637.2,1636.4,0.7631]
[1744619711521,6.51384123,1637.2,1636.8,4.88744]
[1744619711723,11.40050123,1637.2,1636.8,4.88744]
[1744619712023,6.51384123,1637.2,1636.8,4.88744]
[1744619712446,6.51384123,1637.2,1636.8,4.88741]
[1744619712835,11.40044123,1637.2,1636.8,4.88741]
[1744619713137,1.14004412,1637.1,1636.8,4.88741]
[1744619714454,6.51384123,1637.2,1636.8,4.88741]
[1744619714632,1.62742123,1637.2,1636.8,4.88741]
[1744619714831,5.70299,1637.2,1636.8,4.88741]
[1744619715031,5.70299,1637.2,1636.8,9.77482]
[1744619715239,0.8165,1637.2,1637.0,4.88698]
[1744619715446,0.8219,1637.4,1637.1,4.88642]
[1744619715644,0.8219,1637.4,1637.0,4.88697]
[1744619715645,5.70786,1637.4,1637.0,4.88697]
[1744619715832,5.70786,1637.4,1637.0,9.8348299]
[1744619716019,5.70786,1637.4,1637.0,4.9478599]
[1744619716225,0.8219,1637.4,1637.0,4.88678]
[1744619716429,0.8219,1637.4,1637.1,4.88668]
[1744619717157,4.8865,1637.2,1636.8,4.88752]
[1744619717459,0.8031,1637.1,1636.9,4.88727]
[1744619718332,0.8031,1637.1,1636.9,9.7744]
[1744619718532,0.8031,1637.1,1636.9,9.77429]
[1744619719265,0.8031,1637.1,1636.9,4.88713]
[1744619719843,0.8031,1637.1,1637.0,4.88698]
[1744619720373,0.8031,1637.1,1636.9,4.88713]
[1744619720775,0.8031,1637.1,1636.8,9.77508]
[1744619720974,0.8031,1637.1,1636.8,11.133298]
[1744619721838,0.8031,1637.1,1636.9,4.88725]
[1744619722032,0.8031,1637.1,1636.9,9.77435]
[1744619722435,0.8067,1637.3,1637.0,4.88698]
[1744619722762,6.328,1637.5,1637.3,4.88587]
[1744619722963,6.328,1637.5,1637.4,4.88579]
[1744619723164,0.8067,1637.7,1637.4,4.88579]
[1744619723463,0.8067,1637.7,1637.6,4.88519]
[1744619723642,12.461,1637.8,1637.6,4.88519]
[1744619724029,6.291,1637.8,1637.6,4.88509]
[1744619724268,6.291,1637.8,1637.7,4.88489]
[1744619724471,5.64211,1637.9,1637.5,4.88549]
[1744619724764,4.88492,1637.7,1637.3,9.77196]
[1744619724967,0.8042,1637.6,1637.2,4.88626]
[1744619725132,0.8042,1637.6,1637.3,4.88595]
[1744619725327,0.8042,1637.6,1637.4,4.88576]
[1744619725533,5.68946,1637.6,1637.2,4.88638]
[1744619725865,5.454546,1637.5,1637.1,9.77319]
[1744619726073,5.454546,1637.5,1637.2,4.88634]
[1744619726228,0.568946,1637.5,1637.4,4.88579]
[1744619726553,0.8042,1637.6,1637.4,4.88579]
[1744619726730,4.88554,1637.5,1637.2,4.88637]
[1744619726930,9.77122,1637.5,1637.1,4.88668]
[1744619727131,5.6894,1637.6,1637.2,4.88623]
[1744619727440,5.6894,1637.6,1637.3,4.88606]
[1744619727647,2.490632,1637.6,1637.3,4.88597]
[1744619727841,2.490632,1637.6,1637.5,4.88549]
[1744619727842,0.8042,1637.6,1637.5,4.88549]
[1744619728166,0.7545,1637.8,1637.6,4.88516]
[1744619730843,0.7545,1637.8,1637.5,9.77078]
[1744619731079,0.7545,1637.8,1637.4,4.88568]
[1744619731571,0.38654844,1637.7,1637.4,4.88566]
[1744619731938,5.27145844,1637.7,1637.3,4.88606]
[1744619732237,4.88522,1637.6,1637.3,4.88606]
[1744619732437,5.28239121,1637.6,1637.3,4.88606]
[1744619732649,10.16787121,1637.6,1637.2,4.8863]
[1744619732876,0.7867,1637.5,1637.2,4.8863]
[1744619733078,0.7867,1637.5,1637.2,4.88623]
[1744619733263,0.39532674,1637.4,1637.2,4.88623]
[1744619735978,0.39532674,1637.4,1636.9,4.88728]
[1744619735979,0.7989,1637.3,1636.9,4.88728]
[1744619736278,0.7989,1637.3,1637.2,4.88639]
[1744619736475,0.7989,1637.3,1637.0,4.88694]
[1744619736683,6.253551,1637.3,1636.9,4.88726]
[1744619736850,1.367381,1637.3,1637.0,4.88697]
[1744619737051,0.7989,1637.3,1637.1,4.88668]
[1744619737659,0.7989,1637.3,1637.0,9.77377]
[1744619737876,0.7989,1637.3,1637.1,4.88668]
[1744619738684,0.3932517,1637.2,1637.1,4.88668]
[1744619738861,0.3932517,1637.2,1637.0,9.77369]
[1744619739681,0.3932517,1637.2,1637.0,4.88681]
[1744619739888,5.2796517,1637.2,1636.9,4.88726]
[1744619740057,0.3932517,1637.2,1637.0,4.88686]
[1744619740382,0.3932517,1637.2,1637.1,4.88668]
[1744619740753,0.3932517,1637.2,1637.0,4.88686]
[1744619741158,0.3932517,1637.2,1637.0,9.77372]
[1744619741361,0.3932517,1637.2,1637.0,4.88686]
[1744619741921,1.00108087,1637.2,1636.9,4.88724]
[1744619742260,5.88754087,1637.2,1636.9,4.88724]
[1744619742456,0.3932517,1637.2,1636.9,9.77436]
[1744619742673,0.3932517,1637.2,1636.9,4.88712]
[1744619742995,0.3932517,1637.2,1637.1,4.88668]
[1744619743361,0.3932517,1637.2,1637.0,4.88686]
[1744619743663,0.3932517,1637.2,1637.0,9.77373]
[1744619744200,0.3932517,1637.2,1637.1,4.88668]
[1744619744387,16.08839812,1637.5,1637.1,9.77336]
[1744619746198,0.3932517,1637.2,1637.1,4.88668]
[1744619746504,0.82028481,1637.4,1637.1,4.88668]
[1744619746708,0.3932517,1637.2,1637.1,4.88668]
[1744619747019,0.3932517,1637.2,1636.9,4.88719]
[1744619747223,4.88611,1637.3,1636.9,4.94827227]
[1744619747393,0.3926744,1637.1,1636.9,4.94827227]
[1744619747594,5.94534948,1637.3,1636.9,4.88719]
[1744619747812,0.779,1637.2,1637.0,4.88691]
[1744619748140,0.779,1637.2,1637.0,4.8868]
[1744619748284,0.779,1637.2,1637.0,9.77373]
[1744619748602,0.779,1637.2,1637.0,4.8868]
[1744619749611,0.779,1637.2,1636.9,4.88724]
[1744619749999,0.779,1637.2,1636.9,9.77448]
[1744619750217,5.70611481,1637.4,1637.0,4.88695]
[1744619750382,5.70611481,1637.4,1637.1,4.88666]
[1744619750714,0.57061148,1637.3,1637.0,4.88695]
[1744619751284,0.57061148,1637.3,1637.0,9.77382]
[1744619751578,0.57061148,1637.3,1637.0,4.88687]
[1744619752211,0.57061148,1637.3,1637.0,9.7737]
[1744619753714,0.39251495,1637.2,1637.0,4.88683]
[1744619755502,0.39251495,1637.2,1637.0,9.77366]
[1744619756717,0.39251495,1637.2,1637.0,4.88683]
[1744619756885,0.39251495,1637.2,1636.9,4.88722]
[1744619757107,1.15201495,1637.2,1636.9,4.88722]
[1744619757735,1.81289559,1637.2,1636.9,4.88722]
[1744619757933,1.15201495,1637.2,1636.9,4.88713]
[1744619759741,6.03851495,1637.2,1636.9,4.88713]
[1744619759942,10.92507495,1637.2,1636.8,5.70506]
[1744619760104,6.03851495,1637.2,1636.8,10.59248]
[1744619760306,1.15201495,1637.2,1636.9,9.77431]
[1744619760832,0.39251495,1637.2,1637.1,4.88668]
[1744619761038,6.289,1637.5,1637.3,4.88598]
[1744619761236,6.289,1637.5,1637.3,9.77195]
[1744619761733,6.289,1637.5,1637.3,4.88597]
[1744619762708,0.763,1637.8,1637.7,4.88489]
[1744619763007,4.88401,1638.0,1637.7,4.88489]
[1744619763008,5.64703,1638.0,1637.7,4.88489]
[1744619763206,0.8084,1637.8,1637.4,4.88563]
[1744619763449,4.88501,1637.7,1637.3,5.70811]
[1744619764148,0.7666,1637.6,1637.2,4.88636]
[1744619764357,5.65243,1637.4,1637.1,4.88664]
[1744619764709,0.7666,1637.4,1637.2,4.88637]
[1744619764953,0.7666,1637.4,1637.1,4.88666]
[1744619765151,4.88611,1637.3,1637.0,4.88696]
[1744619765854,6.217815,1637.4,1637.0,9.77382]
[1744619766648,11.103815,1637.4,1637.0,4.88686]
[1744619766951,4.88627,1637.3,1636.9,5.68636]
[1744619767542,4.88627,1637.3,1636.9,9.77443]
[1744619767739,5.9966615,1637.3,1636.9,9.77443]
[1744619767923,5.9966615,1637.3,1636.9,4.88717]
[1744619768115,5.9966615,1637.3,1636.9,9.77434]
[1744619768311,0.7666,1637.4,1637.2,4.88629]
[1744619768638,0.34111279,1637.3,1637.2,4.88629]
[1744619769031,8.70903,1637.6,1637.2,4.88629]
[1744619769227,0.34148216,1637.3,1637.2,4.88629]
[1744619769431,13.59451,1637.6,1637.2,4.88629]
[1744619769640,0.34148216,1637.3,1637.2,4.88629]
[1744619769828,1.359451,1637.5,1637.2,4.88629]
[1744619770035,0.34148216,1637.3,1637.2,9.77255]
[1744619770237,5.70903,1637.6,1637.3,4.88603]
[1744619770860,10.5944,1637.6,1637.2,4.88626]
[1744619771051,1.05944,1637.5,1637.2,4.88626]
[1744619771245,0.8237,1637.6,1637.1,0.06107596]
[1744619771435,0.8237,1637.6,1637.4,4.88567]
[1744619772463,6.243,1637.7,1637.4,4.88567]
[1744619772929,11.1279,1637.7,1637.4,4.88567]
[1744619773129,12.806092,1637.7,1637.4,4.88567]
[1744619773874,6.243,1637.7,1637.4,9.77131]
[1744619774234,6.243,1637.7,1637.4,4.88564]
[1744619774677,11.1279,1637.7,1637.4,4.88564]
[1744619775358,11.1279,1637.7,1637.4,9.77126]
[1744619775359,6.243,1637.7,1637.4,9.77126]
[1744619775672,6.243,1637.7,1637.4,4.88562]
[1744619775871,6.243,1637.7,1637.4,9.77125]
[1744619776772,6.243,1637.7,1637.4,4.88562]
[1744619777458,6.243,1637.7,1637.4,10.824908]
[1744619777671,6.243,1637.7,1637.4,5.939278]
[1744619778261,6.243,1637.7,1637.4,10.824898]
[1744619778464,6.243,1637.7,1637.4,5.939278]
[1744619778659,11.12794,1637.7,1637.4,4.88562]
[1744619778961,11.12794,1637.7,1637.3,10.53693]
[1744619781534,5.7084,1637.3,1636.9,5.65024]
[1744619781759,5.7084,1637.3,1636.9,10.5374]
[1744619782684,5.7084,1637.3,1636.9,5.65016]
[1744619782888,11.9504,1637.3,1636.9,10.5373]
[1744619783108,11.9504,1637.3,1636.9,11.59103]
[1744619783595,0.34353623,1637.2,1636.9,11.59103]
[1744619783990,0.34353623,1637.2,1637.1,4.88668]
[1744619784690,0.34353623,1637.2,1637.0,4.88671]
[1744619784856,4.88596,1637.4,1637.0,4.88671]
[1744619785057,0.34042005,1637.1,1637.0,4.88671]
[1744619785288,11.93583,1637.5,1637.1,9.77303]
[1744619785475,11.93583,1637.5,1637.1,4.88648]
[1744619785877,11.93583,1637.5,1637.2,4.88628]
[1744619786185,4.88581,1637.4,1637.1,4.88648]
[1744619786359,9.77178,1637.4,1637.0,4.88697]
[1744619786562,9.77178,1637.4,1637.0,6.046064]
[1744619786771,4.88581,1637.4,1637.0,10.932914]
[1744619787295,0.784,1637.3,1637.0,4.88685]
[1744619787610,5.67022,1637.3,1637.0,4.88685]
[1744619788085,0.784,1637.3,1637.0,4.88685]
[1744619788322,0.784,1637.3,1637.0,9.77368]
[1744619788512,7.0312,1637.5,1637.2,4.88622]
[1744619788792,13.597094,1637.5,1637.1,4.88666]
[1744619788979,7.0312,1637.5,1637.2,4.88635]
[1744619789359,7.0312,1637.5,1637.2,4.88629]
[1744619789559,11.91674,1637.5,1637.2,4.88629]
[1744619789774,4.88592,1637.4,1637.0,4.88669]
[1744619789956,4.88592,1637.4,1636.9,1.81673]
[1744619790185,16.80236,1637.5,1637.1,4.88651]
[1744619790372,11.9167,1637.5,1637.1,9.77306]
[1744619790900,6.242,1637.5,1637.4,4.88579]
[1744619791100,4.88541,1637.6,1637.2,4.88634]
[1744619791389,5.67679,1637.5,1637.1,5.66502]
[1744619791595,0.7912,1637.5,1637.0,4.88695]
[1744619791889,4.88623,1637.3,1636.9,5.70095]
[1744619792110,4.88653,1637.2,1636.8,4.88755]
[1744619792392,0.7598,1637.1,1636.8,4.88755]
[1744619793291,0.7598,1637.1,1636.7,5.70154]
[1744619793292,5.6466,1637.1,1636.7,5.70154]
[1744619793593,5.6466,1637.1,1636.7,4.88784]
[1744619793791,5.6466,1637.1,1636.7,5.376624]
[1744619794098,5.6466,1637.1,1636.8,4.88753]
[1744619794291,5.6466,1637.1,1636.7,5.376554]
[1744619794899,5.6466,1637.1,1636.7,10.264334]
[1744619795097,5.6466,1637.1,1636.8,4.88758]
[1744619795699,5.6466,1637.1,1636.7,5.376554]
[1744619795901,10.53348,1637.1,1636.7,5.376554]
[1744619796497,4.88756,1636.9,1636.5,0.8332]
[1744619796798,5.7076,1636.8,1636.4,7.38710796]
[1744619797103,10.59541,1636.8,1636.4,7.38710796]
[1744619797486,10.59541,1636.8,1636.4,2.49856796]
[1744619797487,4.88789,1636.7,1636.4,2.49856796]
[1744619797686,9.77602,1636.7,1636.4,2.49856796]
[1744619797892,10.59518,1636.8,1636.4,7.38723796]
[1744619798194,5.7075,1636.8,1636.4,2.49856796]
[1744619798372,4.88817,1636.7,1636.4,2.49856796]
[1744619798584,0.33550073,1636.6,1636.4,2.49856796]
[1744619800108,0.33550073,1636.6,1636.4,9.49506323]
[1744619800399,5.7075,1636.8,1636.5,4.88848]
[1744619800579,0.33455404,1636.7,1636.4,7.38720796]
[1744619801495,10.11063404,1636.7,1636.4,2.49856796]
[1744619801690,0.8107,1636.5,1636.4,2.49856796]
[1744619801893,5.69918,1636.5,1636.4,2.49856796]